fUST/lending_fUST_20240529
["ID","MTS","AMOUNT","RATE_DAILY","PERIOD"]
[328137102,1716930635108,-500.0,0.00022191,2]
[328137103,1716930635117,-500.0,0.00022191,2]
[328137104,1716930635126,-500.0,0.00022191,2]
[328137105,1716930635135,-500.0,0.00022191,2]
[328137106,1716930635144,-500.0,0.00022191,2]
[328137107,1716930635153,-500.0,0.00022191,2]
[328137108,1716930635162,-791.83,0.00022191,2]
[328137109,1716930635171,-809.1,0.00022191,2]
[328137110,1716930635181,-500.0,0.00022191,2]
[328137111,1716930635190,-531.25,0.00022191,2]
[328137112,1716930635199,-1394.26,0.00022191,2]
[328137113,1716930635208,-1020.25,0.00022191,2]
[328137114,1716930635217,-744.79,0.00022191,2]
[328137115,1716930635226,-500.0,0.00022191,2]
[328137116,1716930635235,-500.0,0.00022191,2]
[328137117,1716930635244,-500.0,0.00022191,2]
[328137118,1716930635254,-500.0,0.00022191,2]
[328137119,1716930635263,-567.97,0.00022191,2]
[328137120,1716930635273,-6603.56,0.00022191,2]
[328137121,1716930635282,-3893.01,0.00022191,2]
[328137122,1716930635291,-500.0,0.00022191,2]
[328137123,1716930635304,-500.0,0.00022191,2]
[328137124,1716930635313,-5596.23,0.00022191,2]
[328137125,1716930635322,-500.0,0.00022191,2]
[328137126,1716930635331,-434.83158881,0.00022191,2]
[328137127,1716930635340,-500.0,0.00022191,2]
[328137128,1716930635349,-3952.92,0.00022191,2]
[328137129,1716930635358,-815.38,0.00022191,2]
[328137130,1716930635367,-753.63,0.00022191,2]
[328137131,1716930635380,-500.0,0.00022191,2]
[328137132,1716930635389,-500.0,0.00022191,2]
[328137133,1716930635398,-500.0,0.00022191,2]
[328137134,1716930635407,-1598.46,0.00022191,2]
[328137135,1716930635416,-1121.33,0.00022191,2]
[328137136,1716930635425,-500.0,0.00022191,2]
[328137137,1716930635434,-500.0,0.00022191,2]
[328137138,1716930635443,-500.0,0.00022191,2]
[328137139,1716930635452,-500.0,0.00022191,2]
[328137140,1716930635461,-957.61,0.00022191,2]
[328137141,1716930635471,-500.0,0.00022191,2]
[328137142,1716930635479,-500.0,0.00022191,2]
[328137143,1716930635489,-543.55,0.00022191,2]
[328137144,1716930635498,-500.0,0.00022191,2]
[328137145,1716930635507,-500.0,0.00022191,2]
[328137146,1716930635517,-500.0,0.00022191,2]
[328137147,1716930635527,-500.0,0.00022191,2]
[328137148,1716930635536,-500.0,0.00022191,2]
[328137149,1716930635545,-644.7714143,0.00022191,2]
[328137150,1716930635554,-500.0,0.00022191,2]
[328137151,1716930635563,-500.0,0.00022191,2]
[328137152,1716930635572,-500.0,0.00022191,2]
[328137153,1716930635581,-301.24223622,0.00022191,2]
[328137154,1716930635591,-500.0,0.00022191,2]
[328137155,1716930635600,-500.0,0.00022191,2]
[328137156,1716930635609,-500.0,0.00022191,2]
[328137157,1716930635618,-500.0,0.00022191,2]
[328137158,1716930635627,-500.0,0.00022191,2]
[328137159,1716930635636,-566.7,0.00022191,2]
[328137160,1716930635645,-1059.66,0.00022191,2]
[328137161,1716930635654,-590.64,0.00022191,2]
[328137162,1716930635663,-1020.33,0.00022191,2]
[328137163,1716930635672,-2016.58,0.00022191,2]
[328137164,1716930635681,-500.0,0.00022191,2]
[328137165,1716930635690,-500.0,0.00022191,2]
[328137166,1716930635700,-500.0,0.00022191,2]
[328137167,1716930635709,-500.0,0.00022191,2]
[328137168,1716930635719,-500.0,0.00022191,2]
[328137169,1716930635728,-808.77517036,0.00022322,2]
[328137170,1716930635737,-564.0,0.000224,2]
[328137171,1716930635747,-564.0,0.000224,2]
[328137172,1716930635756,-166.666666,0.00022431,2]
[328137173,1716930635765,-2000.0,0.0002245,2]
[328137174,1716930635776,-1800.0,0.00022464,4]
[328137175,1716930635786,-1800.0,0.00022464,4]
[328137176,1716930635795,-1800.0,0.00022464,4]
[328137177,1716930635804,-1800.0,0.00022464,4]
[328137178,1716930635813,-16078.68077235,0.00022465,7]
[328137179,1716930635822,-9668.81360223,0.00022465,7]
[328137180,1716930635831,-591.02883744,0.00022465,2]
[328137181,1716930635841,-500.0,0.00022465,2]
[328137182,1716930635851,-500.0,0.00022465,2]
[328137183,1716930635862,-500.0,0.00022465,2]
[328137184,1716930635871,-500.0,0.00022465,2]
[328137185,1716930635880,-1184.45,0.00022465,2]
[328137186,1716930635890,-1054.96,0.00022465,2]
[328137187,1716930635899,-1774.59,0.00022465,2]
[328137188,1716930635908,-500.0,0.00022465,2]
[328137189,1716930635918,-500.0,0.00022465,2]
[328137190,1716930635927,-512.12,0.00022465,2]
[328137191,1716930635936,-500.0,0.00022465,2]
[328137192,1716930635945,-606.34,0.00022465,2]
[328137193,1716930635955,-500.0,0.00022465,2]
[328137194,1716930635964,-500.0,0.00022465,2]
[328137195,1716930635973,-739.7,0.00022465,2]
[328137196,1716930635983,-500.0,0.00022465,2]
[328137197,1716930635992,-756.98,0.00022465,2]
[328137198,1716930636002,-725.33,0.00022465,2]
[328137199,1716930636011,-500.0,0.00022465,2]
[328137200,1716930636022,-569.16,0.00022465,2]
[328137201,1716930636032,-500.0,0.00022465,2]
[328137202,1716930636041,-570.15,0.00022465,2]
[328137203,1716930636051,-500.0,0.00022465,2]
[328137204,1716930636060,-500.0,0.00022465,2]
[328137205,1716930636069,-500.0,0.00022465,2]
[328137206,1716930636078,-500.0,0.00022465,2]
[328137207,1716930636088,-441.57170442,0.00022465,2]
[328137208,1716930636099,-500.0,0.00022465,2]
[328137209,1716930636108,-500.0,0.00022465,2]
[328137210,1716930636118,-500.0,0.00022465,2]
[328137211,1716930636127,-791.83,0.00022465,2]
[328137212,1716930636137,-809.1,0.00022465,2]
[328137213,1716930636147,-500.0,0.00022465,2]
[328137214,1716930636156,-531.25,0.00022465,2]
[328137215,1716930636166,-1394.26,0.00022465,2]
[328137216,1716930636176,-1020.25,0.00022465,2]
[328137217,1716930636185,-744.79,0.00022465,2]
[328137218,1716930636195,-500.0,0.00022465,2]
[328137219,1716930636204,-500.0,0.00022465,2]
[328137220,1716930636213,-500.0,0.00022465,2]
[328137221,1716930636223,-500.0,0.00022465,2]
[328137222,1716930636232,-567.97,0.00022465,2]
[328137223,1716930636241,-6603.56,0.00022465,2]
[328137224,1716930636250,-3893.01,0.00022465,2]
[328137225,1716930636259,-500.0,0.00022465,2]
[328137226,1716930636270,-500.0,0.00022465,2]
[328137227,1716930636279,-2148.25049922,0.00022465,2]
[328137230,1716930638110,-3039.46323821,0.00022465,2]
[328137231,1716930638122,-408.51626257,0.00022465,2]
[328137232,1716930638131,-500.0,0.00022465,2]
[328137233,1716930638140,-500.0,0.00022465,2]
[328137234,1716930638149,-3382.19097352,0.00022465,2]
[328137241,1716930641158,-570.72902648,0.00022465,2]
[328137242,1716930641168,-753.63,0.00022465,2]
[328137243,1716930641178,-815.38,0.00022465,2]
[328137244,1716930641188,-500.0,0.00022465,2]
[328137245,1716930641198,-500.0,0.00022465,2]
[328137246,1716930641208,-500.0,0.00022465,2]
[328137247,1716930641217,-1598.46,0.00022465,2]
[328137248,1716930641227,-1121.33,0.00022465,2]
[328137249,1716930641236,-500.0,0.00022465,2]
[328137250,1716930641246,-500.0,0.00022465,2]
[328137251,1716930641255,-500.0,0.00022465,2]
[328137252,1716930641265,-500.0,0.00022465,2]
[328137253,1716930641286,-957.61,0.00022465,2]
[328137254,1716930641300,-500.0,0.00022465,2]
[328137255,1716930641310,-500.0,0.00022465,2]
[328137256,1716930641319,-543.55,0.00022465,2]
[328137257,1716930641329,-500.0,0.00022465,2]
[328137258,1716930641339,-500.0,0.00022465,2]
[328137259,1716930641349,-500.0,0.00022465,2]
[328137260,1716930641358,-500.0,0.00022465,2]
[328137261,1716930641368,-500.0,0.00022465,2]
[328137262,1716930641379,-500.0,0.00022465,2]
[328137263,1716930641389,-500.0,0.00022465,2]
[328137264,1716930641399,-500.0,0.00022465,2]
[328137265,1716930641410,-500.0,0.00022465,2]
[328137266,1716930641420,-500.0,0.00022465,2]
[328137267,1716930641431,-500.0,0.00022465,2]
[328137268,1716930641440,-500.0,0.00022465,2]
[328137269,1716930641450,-500.0,0.00022465,2]
[328137270,1716930641459,-566.7,0.00022465,2]
[328137271,1716930641468,-1059.66,0.00022465,2]
[328137272,1716930641478,-590.64,0.00022465,2]
[328137273,1716930641487,-1020.33,0.00022465,2]
[328137274,1716930641496,-2016.58,0.00022465,2]
[328137275,1716930641506,-500.0,0.00022465,2]
[328137276,1716930641515,-500.0,0.00022465,2]
[328137277,1716930641525,-500.0,0.00022465,2]
[328137278,1716930641535,-500.0,0.00022465,2]
[328137279,1716930641544,-500.0,0.00022465,2]
[328137280,1716930641553,-2190.00780353,0.00022484,2]
[328137281,1716930641567,-5266.88667412,0.00022484,2]
[328137310,1716930643159,-219.39500898,0.00021816,2]
[328137627,1716930646314,-345.00673985,0.00020913,2]
[328139820,1716930669253,403.96305898,0.00015684,2]
[328139823,1716930669275,966.58655063,0.00015684,2]
[328139827,1716930669296,721.38634506,0.00015684,2]
[328140155,1716930672575,278.61365494,0.00015527,2]
[328140158,1716930672597,9.59821796,0.00015527,2]
[328140471,1716930675717,223.07296701,0.00015684,2]
[328140754,1716930678500,274.18094634,0.00015684,2]
[328140806,1716930679151,493.14786869,0.00015684,2]
[328140808,1716930679171,178.96827654,0.00015684,2]
[328141113,1716930682503,156.6748638,0.00015684,2]
[328141974,1716930691225,483.08149856,0.00015527,2]
[328143701,1716930709258,181.2753611,0.00015527,2]
[328144254,1716930715570,13302.23791938,9.999e-05,2]
[328144258,1716930715602,17300.0,9.999e-05,2]
[328144262,1716930715625,823.85876261,9.999e-05,2]
[328144265,1716930715651,13046.88485076,9.999e-05,2]
[328145438,1716931207004,9295.35324241,9.999e-05,2]
[328145439,1716931209795,2091.93595467,9.999e-05,2]
[328145440,1716931225889,2091.93595467,9.999e-05,2]
[328145441,1716931241798,457.70217541,9.999e-05,2]
[328145443,1716931361002,7211.06896399,9.999e-05,2]
[328145444,1716931367813,697.36236629,9.999e-05,2]
[328145445,1716931377006,5652.1143369,9.999e-05,2]
[328145447,1716931429004,14483.99895244,9.999e-05,2]
[328145449,1716931635172,-170.23908,0.00019347,2]
[328145450,1716931635193,-164.797921,0.00019445,2]
[328145451,1716931635215,-475.66865514,0.0001948,2]
[328145452,1716931638117,-282.68336093,0.0001948,2]
[328145453,1716931640106,-302.0,0.0001948,2]
[328145454,1716931645101,-115.61823273,0.0001948,2]
[328145455,1716931645121,-442.36779973,0.00019776,2]
[328145456,1716931645149,-22.27152227,0.00019776,2]
[328145457,1716931645169,-215.30541875,0.0002,2]
[328145484,1716931831988,-616.42013342,0.000189,2]
[328145486,1716931831997,-1573.45294359,0.0002,2]
[328145516,1716931838002,-8078.78029991,0.0002,2]
[328145517,1716931838012,-328.26786708,0.0002,2]
[328145518,1716931838022,-13000.0,0.0002,2]
[328145519,1716931838031,-331.083409,0.00020139,2]
[328145520,1716931838040,-156.6263305,0.00020912,2]
[328145521,1716931838049,-154.92253873,0.00020912,2]
[328145522,1716931838058,-896.7707273,0.00020912,2]
[328145523,1716931838067,-395.73690521,0.00020912,2]
[328145524,1716931838076,-194.65850964,0.00020912,2]
[328145525,1716931838085,-488.52129085,0.00020912,2]
[328145526,1716931838094,-699.30998081,0.00020913,2]
[328145527,1716931838103,-486.54,0.00021907,3]
[328145528,1716931838113,-154.55795854,0.00021916,2]
[328145529,1716931838122,-500.0,0.00021916,2]
[328145530,1716931838131,-291.2497995,0.00021916,2]
[328145531,1716931838140,-500.0,0.00021916,2]
[328145532,1716931838149,-500.0,0.00021916,2]
[328145533,1716931838158,-418.7548085,0.00021916,2]
[328145534,1716931838167,-568.16480833,0.00021916,2]
[328145535,1716931838176,-500.0,0.00021916,2]
[328145536,1716931838185,-200.0,0.00021916,2]
[328145537,1716931838194,-500.0,0.00021916,2]
[328145538,1716931838203,-500.0,0.00021916,2]
[328145539,1716931838212,-530.54,0.00021917,2]
[328145540,1716931838221,-500.0,0.00021917,2]
[328145541,1716931838230,-500.0,0.00021917,2]
[328145542,1716931838239,-500.0,0.00021917,2]
[328145543,1716931838248,-500.0,0.00021917,2]
[328145544,1716931838257,-923.09,0.00021917,2]
[328145545,1716931838266,-500.0,0.00021917,2]
[328145546,1716931838275,-500.0,0.00021917,2]
[328145547,1716931838284,-500.0,0.00021917,2]
[328145548,1716931838294,-634.66,0.00021917,2]
[328145549,1716931838303,-500.0,0.00021917,2]
[328145550,1716931838312,-500.0,0.00021917,2]
[328145551,1716931838321,-500.0,0.00021917,2]
[328145552,1716931838330,-500.0,0.00021917,2]
[328145553,1716931838339,-713.46,0.00021917,2]
[328145554,1716931838348,-500.0,0.00021917,2]
[328145555,1716931838357,-837.9,0.00021917,2]
[328145556,1716931838366,-500.0,0.00021917,2]
[328145558,1716931838375,-500.0,0.00021917,2]
[328145559,1716931838384,-500.0,0.00021917,2]
[328145560,1716931838393,-500.0,0.00021917,2]
[328145561,1716931838402,-500.0,0.00021917,2]
[328145562,1716931838412,-707.96,0.00021917,2]
[328145563,1716931838422,-500.0,0.00021917,2]
[328145564,1716931838431,-500.0,0.00021917,2]
[328145565,1716931838440,-500.0,0.00021917,2]
[328145566,1716931838450,-500.0,0.00021917,2]
[328145567,1716931838459,-500.0,0.00021917,2]
[328145568,1716931838468,-500.0,0.00021917,2]
[328145569,1716931838477,-500.0,0.00021917,2]
[328145570,1716931838487,-651.69,0.00021917,2]
[328145571,1716931838496,-500.0,0.00021917,2]
[328145572,1716931838505,-500.0,0.00021917,2]
[328145573,1716931838515,-500.0,0.00021917,2]
[328145574,1716931838525,-500.0,0.00021917,2]
[328145575,1716931838534,-500.0,0.00021917,2]
[328145576,1716931838544,-500.0,0.00021917,2]
[328145577,1716931838554,-500.0,0.00021917,2]
[328145578,1716931838564,-892.79,0.00021917,2]
[328145579,1716931838573,-500.0,0.00021917,2]
[328145580,1716931838583,-1552.77,0.00021917,2]
[328145582,1716931838592,-500.0,0.00021917,2]
[328145584,1716931838602,-500.0,0.00021917,2]
[328145585,1716931838611,-457.25789281,0.00021917,2]
[328145586,1716931838637,-42.74210719,0.00021917,2]
[328145587,1716931838648,-500.0,0.00021917,2]
[328145588,1716931838659,-450.42589469,0.00021917,2]
[328145604,1716931841577,-488.52129085,0.00021917,2]
[328145605,1716931841588,-302.8671087,0.00021917,2]
[328145606,1716931841600,-156.84570576,0.00021917,2]
[328145607,1716931841609,-500.0,0.00021917,2]
[328145608,1716931841618,-500.0,0.00021917,2]
[328145609,1716931841626,-927.2,0.00021917,2]
[328145610,1716931841637,-500.0,0.00021917,2]
[328145611,1716931841646,-400.61098625,0.00021917,2]
[328145612,1716931841665,-99.38901375,0.00021917,2]
[328145613,1716931841674,-500.0,0.00021917,2]
[328145614,1716931841683,-647.24,0.00021917,2]
[328145615,1716931841693,-344.54327665,0.00021917,2]
[328145616,1716931841702,-1558.16,0.00021917,2]
[328145617,1716931841712,-1219.97,0.00021917,2]
[328145618,1716931841721,-662.35,0.00021917,2]
[328145619,1716931841730,-500.0,0.00021917,2]
[328145620,1716931841741,-500.0,0.00021917,2]
[328145621,1716931841750,-1036.4,0.00021917,2]
[328145622,1716931841759,-4990.66,0.00021917,2]
[328145623,1716931841768,-612.91,0.00021917,2]
[328145624,1716931841777,-981.16,0.00021917,2]
[328145625,1716931841786,-496.99574591,0.00021917,2]
[328145626,1716931841795,-500.0,0.00021917,2]
[328145627,1716931841806,-516.81,0.00021917,2]
[328145628,1716931841815,-500.0,0.00021917,2]
[328145629,1716931841824,-6949.11,0.00021917,2]
[328145630,1716931841834,-500.0,0.00021917,2]
[328145631,1716931841843,-371.61497995,0.00021917,2]
[328145632,1716931841852,-500.0,0.00021917,2]
[328145633,1716931841861,-4896.7,0.00021917,2]
[328145634,1716931841869,-148.1605291,0.00021917,2]
[328145635,1716931841881,-1626.7194709,0.00021917,2]
[328145636,1716931841890,-500.0,0.00021917,2]
[328145637,1716931841899,-659.43,0.00021917,2]
[328145638,1716931841908,-500.0,0.00021917,2]
[328145639,1716931841917,-500.0,0.00021917,2]
[328145640,1716931841926,-692.85,0.00021917,2]
[328145641,1716931841935,-500.0,0.00021917,2]
[328145642,1716931841944,-500.0,0.00021917,2]
[328145643,1716931841953,-500.0,0.00021917,2]
[328145644,1716931841965,-500.0,0.00021917,2]
[328145645,1716931841975,-500.0,0.00021917,2]
[328145646,1716931841984,-1785.34,0.00021917,2]
[328145647,1716931841994,-500.0,0.00021917,2]
[328145648,1716931842003,-500.0,0.00021917,2]
[328145649,1716931842012,-500.0,0.00021917,2]
[328145650,1716931842021,-516.04291363,0.00021917,2]
[328145651,1716931842033,-376.67708637,0.00021917,2]
[328145652,1716931842042,-4081.13973819,0.00021917,2]
[328145714,1716931845300,-0.00395155,0.00021917,2]
[328145808,1716931846106,-690.72744387,0.00020913,2]
[328145810,1716931846116,-408.1808544,0.00021916,2]
[328146205,1716931878442,293.01535619,0.00015684,2]
[328146207,1716931903031,281.88629717,9.999e-05,2]
[328146208,1716931922591,424.90771134,9.999e-05,2]
[328146209,1716931922610,89.49344896,9.999e-05,2]
[328146210,1716931963449,522.02460308,9.999e-05,2]
[328146211,1716931974940,522.02460308,9.999e-05,2]
[328146216,1716932107503,3633.2531206,9.999e-05,2]
[328146217,1716932133365,1942.48938734,9.999e-05,2]
[328146218,1716932219490,3053.02155356,0.000125,2]
[328146219,1716932369563,164.02008532,0.000125,2]
[328146222,1716932827153,-309.78316417,0.00019341,2]
[328146223,1716932829122,-345.3033764,0.00019341,2]
[328146224,1716932829145,-1454.76726535,0.00019342,2]
[328146225,1716932832124,-682.69359414,0.00019342,2]
[328146226,1716932845224,-579.04797611,0.00019342,2]
[328146227,1716932845244,-497.589099,0.00019401,2]
[328146228,1716932845264,-557.99814318,0.00019817,2]
[328146229,1716932845283,-921.76314443,0.00019866,2]
[328146230,1716932845304,-149.80039288,0.00019909,3]
[328146231,1716932847104,-1.19960712,0.00019909,3]
[328146232,1716932847124,-1197.11256102,0.0002,2]
[328146233,1716932884081,273.37336231,9.9e-05,2]
[328146234,1716932891828,273.37336231,9.9e-05,2]
[328146236,1716932900527,273.37336231,9.9e-05,2]
[328146324,1716933039400,-351.72730745,0.00018899,2]
[328146326,1716933039410,-371.99876212,0.000189,2]
[328146327,1716933039420,-202.644721,0.00019414,2]
[328146328,1716933039429,-1710.7666823,0.00019602,2]
[328146329,1716933039439,-151.0,0.00019908,3]
[328146330,1716933039448,-1018.42248086,0.0002,2]
[328146331,1716933039457,-2201.84507355,0.0002,2]
[328146356,1716933041868,-0.88264821,0.0002,2]
[328146358,1716933041878,-151.0,0.0002019,3]
[328146360,1716933041888,-962.49756129,0.00020703,2]
[328146362,1716933041897,-165.144507,0.00020711,2]
[328146364,1716933041907,-1847.61310577,0.00020912,2]
[328146367,1716933041920,-1073.57638104,0.00020912,2]
[328146369,1716933041932,-5719.2046938,0.00020912,2]
[328146371,1716933041941,-1044.31672066,0.00020912,2]
[328146373,1716933041951,-395.73690521,0.00020912,2]
[328146375,1716933041960,-1583.07627159,0.00020912,2]
[328146377,1716933041969,-690.95275409,0.00020912,2]
[328146379,1716933041978,-362.09647764,0.00020912,2]
[328146381,1716933041988,-455.92409776,0.00020912,2]
[328146383,1716933041997,-1351.93473586,0.00020912,2]
[328146385,1716933042006,-836.37406668,0.00020912,2]
[328146387,1716933042016,-282.74110619,0.00020912,2]
[328146389,1716933042027,-304.27052571,0.00020912,2]
[328146391,1716933042038,-272.23533165,0.00020912,2]
[328146393,1716933042047,-280.53391331,0.00020912,2]
[328146395,1716933042056,-306.82904941,0.00020913,2]
[328146397,1716933042066,-155.15694195,0.00020913,2]
[328146399,1716933042075,-247.64628,0.00020913,2]
[328146401,1716933042086,-251.7553016,0.00020913,2]
[328146403,1716933042096,-1143.89970046,0.00021,2]
[328146405,1716933042107,-1414.33256632,0.00021788,2]
[328146407,1716933042118,-176.903949,0.00021808,2]
[328146409,1716933042127,-510.42120409,0.00021816,2]
[328146411,1716933042136,-189.38548938,0.00021817,2]
[328146413,1716933042146,-153.0,0.00021825,2]
[328146415,1716933042156,-153.0,0.00021825,2]
[328146417,1716933042165,-153.0,0.00021825,2]
[328146419,1716933042173,-383.2354797,0.00021825,2]
[328146421,1716933042183,-153.0,0.00021825,2]
[328146423,1716933042193,-153.0,0.00021825,2]
[328146425,1716933042202,-153.0,0.00021825,2]
[328146427,1716933042211,-33.54135669,0.00021916,2]
[328146429,1716933042221,-500.0,0.00021916,2]
[328146430,1716933042230,-391.6900988,0.00021916,2]
[328146433,1716933042240,-177.00596848,0.00021916,2]
[328146435,1716933042249,-373.31140799,0.00021916,2]
[328146437,1716933042259,-193.49693288,0.00021916,2]
[328146438,1716933042268,-500.0,0.00021916,2]
[328146441,1716933042277,-498.27108467,0.00021916,2]
[328146442,1716933042287,-500.0,0.00021916,2]
[328146444,1716933042296,-200.0,0.00021916,2]
[328146446,1716933042305,-568.16480833,0.00021916,2]
[328146448,1716933042315,-500.0,0.00021917,2]
[328146450,1716933042324,-500.0,0.00021917,2]
[328146453,1716933042333,-500.0,0.00021917,2]
[328146455,1716933042344,-500.0,0.00021917,2]
[328146457,1716933042354,-500.0,0.00021917,2]
[328146459,1716933042363,-500.0,0.00021917,2]
[328146461,1716933042372,-500.0,0.00021917,2]
[328146463,1716933042381,-500.0,0.00021917,2]
[328146465,1716933042390,-500.0,0.00021917,2]
[328146466,1716933042399,-500.0,0.00021917,2]
[328146468,1716933042408,-500.0,0.00021917,2]
[328146470,1716933042418,-500.0,0.00021917,2]
[328146472,1716933042426,-500.0,0.00021917,2]
[328146474,1716933042435,-608.22,0.00021917,2]
[328146476,1716933042444,-500.0,0.00021917,2]
[328146478,1716933042453,-683.73,0.00021917,2]
[328146480,1716933042462,-500.0,0.00021917,2]
[328146482,1716933042472,-500.0,0.00021917,2]
[328146484,1716933042480,-500.0,0.00021917,2]
[328146486,1716933042490,-500.0,0.00021917,2]
[328146488,1716933042499,-802.99,0.00021917,2]
[328146490,1716933042508,-500.0,0.00021917,2]
[328146492,1716933042517,-500.0,0.00021917,2]
[328146494,1716933042526,-500.0,0.00021917,2]
[328146496,1716933042535,-500.0,0.00021917,2]
[328146498,1716933042544,-500.0,0.00021917,2]
[328146500,1716933042553,-500.0,0.00021917,2]
[328146502,1716933042563,-500.0,0.00021917,2]
[328146504,1716933042572,-500.0,0.00021917,2]
[328146506,1716933042581,-678.46,0.00021917,2]
[328146508,1716933042592,-500.0,0.00021917,2]
[328146510,1716933042601,-993.21,0.00021917,2]
[328146512,1716933042609,-624.53,0.00021917,2]
[328146514,1716933042619,-500.0,0.00021917,2]
[328146516,1716933042628,-500.0,0.00021917,2]
[328146518,1716933042637,-195.17023155,0.00021917,2]
[328146520,1716933042646,-608.96288575,0.00021917,2]
[328146522,1716933042655,-500.0,0.00021917,2]
[328146524,1716933042664,-855.59,0.00021917,2]
[328146526,1716933042673,-500.0,0.00021917,2]
[328146527,1716933042682,-1488.07,0.00021917,2]
[328146528,1716933042691,-500.0,0.00021917,2]
[328146529,1716933042701,-888.57,0.00021917,2]
[328146530,1716933042710,-1493.24,0.00021917,2]
[328146531,1716933042722,-508.44,0.00021917,2]
[328146532,1716933042731,-500.0,0.00021917,2]
[328146533,1716933042740,-417.77348487,0.00021917,2]
[328146534,1716933042749,-500.0,0.00021917,2]
[328146535,1716933042758,-500.0,0.00021917,2]
[328146536,1716933042767,-500.0,0.00021917,2]
[328146537,1716933042776,-500.0,0.00021917,2]
[328146538,1716933042785,-1169.14,0.00021917,2]
[328146539,1716933042797,-361.50548915,0.00021917,2]
[328146594,1716933043727,-258.76451085,0.00021917,2]
[328146596,1716933043736,-500.0,0.00021917,2]
[328146598,1716933043745,-634.76,0.00021917,2]
[328146600,1716933043754,-500.0,0.00021917,2]
[328146602,1716933043764,-4782.72,0.00021917,2]
[328146604,1716933043773,-940.28,0.00021917,2]
[328146606,1716933043782,-587.37,0.00021917,2]
[328146608,1716933043791,-500.0,0.00021917,2]
[328146610,1716933043800,-500.0,0.00021917,2]
[328146612,1716933043809,-500.0,0.00021917,2]
[328146614,1716933043818,-500.0,0.00021917,2]
[328146616,1716933043827,-500.0,0.00021917,2]
[328146618,1716933043836,-1700.93,0.00021917,2]
[328146620,1716933043846,-500.0,0.00021917,2]
[328146622,1716933043855,-473.57268757,0.00021917,2]
[328146657,1716933102528,154.87609912,9.999e-05,2]
[328146658,1716933526661,93442.0,0.000275,30]
[328146659,1716933612852,-1000.0,0.0003292,120]
[328146660,1716933612878,-1000.0,0.0003292,120]
[328146661,1716933612905,-521.5,0.0003292,120]
[328146662,1716933613118,-374.8950473,0.0003292,30]
[328146663,1716933613144,-525.0,0.0003292,30]
[328146664,1716933613169,-525.0,0.0003292,30]
[328146665,1716933613196,-525.0,0.0003292,30]
[328146666,1716933613228,-525.0,0.0003292,30]
[328146667,1716933613257,-525.0,0.0003292,30]
[328146668,1716933613287,-525.0,0.0003292,30]
[328146669,1716933613313,-525.0,0.0003292,30]
[328146670,1716933613337,-525.0,0.0003292,30]
[328146671,1716933613361,-525.0,0.0003292,30]
[328146672,1716933613386,-525.0,0.0003292,30]
[328146673,1716933613409,-525.0,0.0003292,30]
[328146674,1716933613434,-525.0,0.0003292,30]
[328146675,1716933613458,-525.0,0.0003292,30]
[328146676,1716933613482,-525.0,0.0003292,30]
[328146677,1716933613511,-525.0,0.0003292,30]
[328146678,1716933613537,-525.0,0.0003292,30]
[328146679,1716933613562,-525.0,0.0003292,30]
[328146680,1716933613588,-525.0,0.0003292,30]